Cogmind - Beta 16 @@@ ROGUE MODE // 2026.01.22 @ 16:07:46 Player: Stratimus Result: Destroyed by L-31 Rogue with Katana Performance ------------- Evolutions (1) 500 Regions Visited (2) 400 Robots Destroyed (16) 80 Value Destroyed (377) 377 Prototype IDs (0) 0 Alien Tech Used (0) 0 Bonus (0) 0 TOTAL SCORE: 1357 Bonus ------- None Cogmind --------- Core Integrity 0/400 Matter 258/300 Energy 100/100 System Corruption 0% Temperature Cool (0) Movement Core (100) Ox1 Location -9/Materials Parts ------- > --- POWER (1) -------- (None) > --- PROPULSION (2) --- (None) > --- UTILITY (3) ------ Small Storage Unit > --- WEAPON (3) ------- (None) > --- INVENTORY (8) ---- Light Nuclear Core Aluminum Leg Aluminum Leg Peak State ------------ > --- POWER ------------ Light Ion Engine > --- PROPULSION ------- Aluminum Leg Aluminum Leg > --- UTILITY ---------- Small Storage Unit Terrain Scanner Salvage Targeting Computer > --- WEAPON ----------- EM Pulse Gun Particle Gun Light Assault Rifle > --- INVENTORY -------- Light Nuclear Core Aluminum Leg Aluminum Leg Medium Laser [Rating: 11] Favorites ----------- Power Ion Engine Engine Ion Engine Power Core Light Nuclear Core Propulsion Light Treads Treads Light Treads Leg Aluminum Leg Utility Small Storage Unit Device Terrain Scanner Storage Small Storage Unit Processor Salvage Targeting Computer Weapon Assault Rifle Energy Gun Small Laser Ballistic Gun Assault Rifle Build | -11 -10 -9 ------- Run | Yrd Mat Mat Slots Evolved 2 | . . 2 Power . | . . . Propulsion . | . . . Utility 1 | . . 1 Weapon 1 | . . 1 Parts Attached 22 | 6 12 4 Power 4 | 1 3 . Engine 3 | 1 2 . Core 1 | . 1 . Reactor . | . . . Propulsion 6 | 2 4 . Treads 2 | 2 . . Leg 4 | . 4 . Wheel . | . . . Hover . | . . . Flight . | . . . Utility 4 | 1 . 3 Device 1 | . . 1 Storage 2 | 1 . 1 Processor 1 | . . 1 Hackware . | . . . Protection . | . . . Artifact . | . . . Weapon 8 | 2 5 1 Energy Gun 4 | 1 2 1 Energy Cannon . | . . . Ballistic Gun 4 | 1 3 . Ballistic Cannon . | . . . Launcher . | . . . Special Weapon . | . . . Impact Weapon . | . . . Slashing Weapon . | . . . Piercing Weapon . | . . . Special Melee Weapon . | . . . Unidentified Prototypes . | . . . Parts Lost 7 | . 1 6 Power 1 | . . 1 Propulsion 1 | . . 1 Utility 1 | . . 1 Weapon 4 | . 1 3 Highest Loss Streak 5 | . 1 5 To Critical Strikes . | . . . Average Backups 3 | . 4 3 Power 1 | . 1 1 Propulsion . | . . 2 Utility . | . . . Weapon 1 | . 2 . Tool/Special . | . . . Unused Backups 2 | . . 2 Power . | . . . Propulsion 2 | . . 2 Utility . | . . . Weapon . | . . . Tool/Special . | . . . Average Slot Usage (%) 81 | . 83 72 Engine 11 | . 12 7 Core 1 | . 1 . Treads 16 | . 21 . Leg 9 | . 6 16 Device 1 | . . 8 Storage 13 | . 14 11 Energy Gun 13 | . 12 15 Ballistic Gun 12 | . 14 7 Peak Build Rating 11 | 6 8 11 Average Rating 6 | 4 6 7 On Entrance 4 | . 6 6 Avg Prop Armor Cover (%) . | . . . Naked Turns . | . . . Heaviest Build 15 | 12 14 15 Greatest Support 40 | 40 40 20 Greatest Overweight (x) 3 | . . 3 Average Overweight (x) . | . . . Largest Inventory Capacity 8 | 8 8 8 Average Capacity 7 | 7 8 8 Most Carried 8 | 1 8 4 Average Carried 3 | . 4 3 Final Capacity 8 | 8 8 8 Final Carried 4 | 1 4 3 Class Distribution -------------------- 74% | Mutant 13% | Scavenger-Mutant 11% | Skirmisher Dominant Class ---------------- Mutant | -10/Materials Skirmisher | -9/Materials Resources | -11 -10 -9 ----------- Run | Yrd Mat Mat Matter Collected 442 | 31 396 15 Remotely . | . . . Salvage Created 470 | . 455 15 Parts 35 | . 32 3 Haulers Intercepted . | . . . Recyclers Shooed . | . . . Parts Field Recycled . | . . . Retrieved Matter . | . . . Parts Self-Destructed . | . . . Prevented . | . . . Parts Restored . | . . . Kills | -11 -10 -9 ------- Run | Yrd Mat Mat Combat Hostiles Destroyed 14 | . 14 . Guns 14 | . 14 . Classes Destroyed 3 | . 3 . Watcher 2 | . 1 1 Swarmer 6 | . 6 . Grunt 8 | . 8 . Best Kill Streak 3 | . 3 1 Combat Bots Only 3 | . 3 . Max Kills in Single Turn 1 | . 1 1 Gunslinging . | . . . Exploded . | . . . Melee . | . . . Uniques/NPCs Destroyed . | . . . Combat | -11 -10 -9 -------- Run | Yrd Mat Mat Hostile Shots Fired 152 | . 99 53 Missed 37 | . 28 9 Hits 115 | . 71 44 Melee 19 | . . 19 Projectile 96 | . 71 25 Critical Strikes 10 | . 1 9 Damage Taken 1628 | . 722 906 Core 556 | . 145 411 Absorbed by Shields . | . . . Core Remaining (%) 71 | 100 42 . Volleys Fired 69 | . 55 14 Largest 3 | . 2 3 Hottest 125 | . 70 125 Shots Fired 117 | . 94 23 Gun 117 | . 94 23 Cannon . | . . . Launcher . | . . . Special . | . . . Kinetic 58 | . 55 3 Thermal 53 | . 39 14 Explosive . | . . . Electromagnetic 6 | . . 6 Robot Hit Streak 4 | . 4 4 Robot Miss Streak 8 | . 8 3 Penetration Max . | . . . Secondary Targets 3 | . 3 . Max Gunslinging Chain 1 | . 1 . Shots Hit Robots 60 | . 46 14 Core Hits 32 | . 27 5 Critical Kills 1 | . 1 . Critical Parts Destroyed . | . . . Critical Strikes 1 | . 1 . Destroy 1 | . 1 . Melee Attacks . | . . . Impact . | . . . Slashing . | . . . Piercing . | . . . Sneak Attacks . | . . . Combat Hostiles . | . . . Follow-up Attacks . | . . . Damage Inflicted 728 | . 500 228 Guns 711 | . 500 211 Cannons . | . . . Explosions . | . . . Melee . | . . . Ramming 17 | . . 17 Kinetic 316 | . 307 9 Thermal 351 | . 193 158 Explosive . | . . . Electromagnetic 44 | . . 44 Impact . | . . . Slashing . | . . . Piercing . | . . . Highest Corruption . | . . . Average Corruption . | . . . Corruption Purged . | . . . Corruption Blocked . | . . . Overload Shots . | . . . Overflow Damage . | . . . Projectiles . | . . . Explosions . | . . . Melee . | . . . Knockbacks . | . . . Impact . | . . . Kinetic . | . . . Secondary . | . . . Self-Inflicted Damage 5 | . . 5 Shots . | . . . Rammed 8 | . . 8 Targets Rammed 10 | . . 10 Kicked 2 | . . 2 Crushed . | . . . Highest Temperature 168 | . 157 168 Average Temperature 55 | . 43 89 Received Heat Transfer 393 | . 243 150 Siege Activations . | . . . Martial Activations . | . . . Shielding Activations . | . . . Robots Disrupted . | . . . Combat Hostiles . | . . . Robots Corrupted . | . . . Combat Hostiles . | . . . Parts Fried . | . . . Impact Corruptions . | . . . Robots Melted . | . . . Combat Hostiles . | . . . Parts Melted . | . . . Heat Transferred 819 | . 449 370 Parts Sabotaged . | . . . Parts Stolen . | . . . Parts Stripped . | . . . Power Chain Reactions . | . . . Alert | -11 -10 -9 ------- Run | Yrd Mat Mat Maximum Alert Level . | . . . Low Security (%) 100 | 100 100 100 Level 1 . | . . . Level 2 . | . . . Level 3 . | . . . Level 4 . | . . . Level 5 . | . . . High Security . | . . . Max Security . | . . . Peak Influence 139 | . 139 42 Initial 42 | . . 42 Average 36 | . 46 9 Influence Increases 372 | . 361 11 Destroy 0b10 Robot/C 280 | . 280 . Destroy 0b10 Robot/NC 10 | . 5 5 Destroy Leader 64 | . 62 2 Successful Hack 18 | . 14 4 Influence Decreases 372 | . 258 114 Entered New Map 61 | . . 61 Time Decay 301 | . 248 53 Lost Part 10 | . 10 . Squads Dispatched 4 | . 4 . Investigation 3 | . 3 . Extermination . | . . . Reinforcement 1 | . 1 . Assault . | . . . Garrison . | . . . Intercept . | . . . Searches Triggered . | . . . Construction Impeded . | . . . Haulers Reinforced . | . . . Active Scanning Responses . | . . . Cargo Convoy Interrupts . | . . . Stealth | -11 -10 -9 --------- Run | Yrd Mat Mat Distress Signals 1 | . 1 . Communications Jammed . | . . . Distress Signals . | . . . Times Spotted 24 | . 22 2 Peak Tracking Total 5 | . 5 2 Tactical Retreats . | . . . Traps | -11 -10 -9 ------- Run | Yrd Mat Mat Traps Triggered 3 | . 3 . Indirectly . | . . . Trap Hack Attempts . | . . . Triggered . | . . . Disarmed . | . . . Reprogrammed . | . . . Reused . | . . . Traps Extracted . | . . . Installed . | . . . Triggered . | . . . Machines | -11 -10 -9 ---------- Run | Yrd Mat Mat Machines Disabled . | . . . Max in Single Turn . | . . . Machines Repaired . | . . . Machines Dismantled . | . . . Machines Sabotaged . | . . . Overloaded Fab Kills . | . . . Hacking | -11 -10 -9 --------- Run | Yrd Mat Mat Machines Accessed 4 | . 3 1 Terminals 3 | . 3 . Fabricators . | . . . Repair Stations . | . . . Recycling Units . | . . . Scanalyzers 1 | . . 1 Garrison Access . | . . . Total Hacks 14 | . 5 9 Successful 8 | . 1 7 Failed 5 | . 4 1 Catastrophic 1 | . 1 . Database Lockouts 1 | . . 1 Manual . | . . . Terminals 5 | . 5 . Fabricators . | . . . Repair Stations . | . . . Recycling Units . | . . . Scanalyzers 9 | . . 9 Garrison Access . | . . . Terminal Hacks 1 | . 1 . Hauler Manifests 1 | . 1 . Fabricator Hacks . | . . . Repair Station Hacks . | . . . Recycling Unit Hacks . | . . . Scanalyzer 7 | . . 7 Insert Component 2 | . . 2 Analyze 2 | . . 2 Retrieve Study 3 | . . 3 Garrison Access Hacks . | . . . Unauthorized Hacks . | . . . Terminals . | . . . Fabricators . | . . . Repair Stations . | . . . Recycling Units . | . . . Scanalyzers . | . . . Garrison Access . | . . . Data Cores Recovered . | . . . Used . | . . . Hacking Detections 2 | . 2 . Full Trace Events 1 | . 1 . Feedback Events . | . . . Feedback Blocked . | . . . Robot Schematics Acquired . | . . . Robots Built . | . . . Authchips . | . . . Time . | . . . Total Robot Build Rating . | . . . Part Schematics Acquired 2 | . . 2 Parts Built . | . . . Authchips . | . . . Time . | . . . Total Part Build Rating . | . . . Part Studies Acquired 2 | . . 2 Parts Repaired . | . . . Time . | . . . Parts Recycled . | . . . Recycled Matter . | . . . Retrieved Matter . | . . . Retrieved Components . | . . . Parts Scanalyzed 2 | . . 2 Part Schematics Acquired 2 | . . 2 Parts Damaged . | . . . Bothacking | -11 -10 -9 ------------ Run | Yrd Mat Mat Used RIF Installer . | . . . Robots Hacked . | . . . Non-combat . | . . . Combat . | . . . Robot Hacks Applied . | . . . Relay Couplers Released . | . . . Fabnet Peak Effective % . | . . . Robots Rewired . | . . . Allies Hacked . | . . . Hacks Repelled . | . . . Allies | -11 -10 -9 -------- Run | Yrd Mat Mat Total Allies . | . . . Largest Group . | . . . Highest-Rated Group . | . . . Highest-Rated Ally . | . . . Total Orders . | . . . Ally Attacks . | . . . Total Damage . | . . . Kills . | . . . Allies Corrupted . | . . . Allies Melted . | . . . Intel | -11 -10 -9 ------- Run | Yrd Mat Mat Active Infowar (turns) 183 | . . 183 Terrain 183 | . . 183 Robot Analysis Total . | . . . Derelict Logs Recovered . | . . . Drone Launches . | . . . Drone Recoveries . | . . . Exploration | -11 -10 -9 ------------- Run | Yrd Mat Mat Turns Passed 1281 | 75 956 250 Spaces Moved 725 | 46 519 160 Core 36 | 7 . 29 Treads 411 | 39 372 . Legs 278 | . 147 131 Wheels . | . . . Hover . | . . . Flight . | . . . Fastest Speed 50 | 50 120 100 Average Speed 140 | 143 148 114 Slowest Speed 200 | 160 160 200 Overloaded Moves . | . . . Propulsion Burnouts . | . . . Robots Hopped . | . . . Potential Cave-ins . | . . . Cave-ins Triggered . | . . . Exploration Rate (%) 25 | 5 59 12 Regions Visited 2 Branch Regions . Pre-discovered Areas . | . . . Known Exits Taken . | . . . Unknown Exits Taken 2 | 1 1 . Scrap Searched . | . . . Spaces Dug . | . . . Terrain Destroyed . | . . . Melee . | . . . Projectile . | . . . AOE . | . . . Terrain Rammed . | . . . Walls Destroyed . | . . . Machines Disabled . | . . . Actions | -11 -10 -9 --------- Run | Yrd Mat Mat Total 868 | 52 614 202 Wait 27 | . 15 12 Move 723 | 45 518 160 Hop . | . . . Pick Up 5 | 1 4 . Fast Attach 12 | 6 1 5 Attach 1 | . . 1 Detach . | . . . Swap 12 | . 12 . Drop 9 | . 9 . Fire 69 | . 55 14 Melee . | . . . Ram 8 | . . 8 Kick 2 | . . 2 Crush . | . . . Escape Stasis . | . . . Rewire . | . . . Trap . | . . . Miscellaneous . | . . . Route ------- -11/Scrapyard -10/Materials (discovered 2 exits: *Mat / [*Min]) -9/Materials History --------- Turn | Location | Event 3 | -11/Scrapyard | Discovered new exit (range 16) 76 | -11/Scrapyard | Entered Materials 77 | -10/Materials | Met a group of wandering Federalists 172 | -10/Materials | Discovered new exit (range 8) 307 | -10/Materials | Build established: Mutant 381 | -10/Materials | Discovered new exit (range 15) 843 | -10/Materials | Core integrity fell below 50% 1032 | -10/Materials | Entered another Materials area 1032 | -9/Materials | Evolved 2 slots: Utility x1, Weapon x1 1079 | -9/Materials | Central database locked down 1242 | -9/Materials | Core integrity fell below 50% 1268 | -9/Materials | Core integrity fell below 20% 1272 | -9/Materials | Lost 5 parts (1p1n3w) 1282 | -9/Materials | Destroyed by L-31 Rogue with Katana Last Messages --------------- Kicked L-31 Rogue. Aluminum Leg+ severed. Slammed into L-31 Rogue. K-01 Serf collects debris. Slammed into L-31 Rogue. Particle Gun broken. Destabilizing: Short circuit. Terrain Scanner severed. Acquired Med. Laser. Broken Particle Gun destroyed. Destroyed Imp. Ion Engine. Slammed into L-31 Rogue. Med. Laser destroyed. Slammed into L-31 Rogue. Slammed into G-34 Mercenary. R-06 Scavenger collects Terrain Scanner. K-01 Serf destroyed. Acquired Sml. Storage Unit. Salvage Targeting Computer severed. Sml. Storage Unit destroyed. Map ----- +----------------------------------------------------+ | ?????????????????????????????????????????????????? | | ?????????????????????????????????????????????????? | | ?????????????????????????????????????????????????? | | ?????????????????????????????#???????????????????? | | ??????????????? ??????#???#?????? ??????????????? | | ???????????????? ??????#?????????????????????????? | | ???????????##+??##?#??########?????? ????????????? | | ??????????# ####### #????????????????????? | | ??????????? #????#???????????????? | | ???????????? ?? " #?????#??????????????? | | ?????????????? ???? #????#???????????????? | | ???????????? ?????????#= #????????????????????? | | ???????????????######### ##????????????????????? | | ?????????????#??# !!% # #???????#?????????????? | | ???????????#????# ! # #????????????#???????#? | | ??????????#?????# !! = + #?????#?????????####### | | ??????????????#?# = # #???#??########## | | ??????????????#?# #r ####?## # """ | | ???????????#????# # g !##?# # """" | | ????????????????######## !#?# """ """ # """" | | ?????????????????#?????# !### """ """ # """" | | ???????????????#?#??#??# !#?# """ """ # """ | | ?????????????? ????????# !#?# # | | ????????? ????????#????#% ##?# # ] | | ???????????????????????# ####??# # | | ????????????############ @ ##############+######+# | | ?????????? l | | ?????????? | | ?????????? | | ???????????##+###########+######################+# | | ???????????????????????????????????#???????# | | ??????????????????????????????????????????## """ " | | ?????????????????????? "????????#??#???#???# """ " | | ???????????????????????????? ??????????????# """ | | ????????????????????????? ?????????????????# | | ?????????????????????????"??????#??????????# | | ?????????????????????????????????#?????????# ! | | ????????????????????????????????????????#??# | | ?????????????????????????????????????????#?####### | | ????????????????????????????????????????????????#? | | ?????????????????????????????????????????????????? | | | | | | | | | | | | | | | | | | | +----------------------------------------------------+ Best States ------------- Heat Dissipation 28 Energy Generation 14 Energy Capacity 250 Matter Stores 300 Matter Capacity 300 Sight Range 16 Terrain Scan Range 14 Terrain Scan Density 10 Evasion (%) 55 Recoil Reduction 2 Salvage Targeting 1 Item Schematics ----------------- Lgt. Nuclear Core | -9/Materials | Scanalyzed Aluminum Leg | -9/Materials | Scanalyzed Robot Schematics ------------------ None Fabricated ------------ Nothing Repaired ---------- Nothing Studied --------- Aluminum Leg | -9/Materials | Hacked Lgt. Assault Rifle | -9/Materials | Hacked Alien Tech Used ----------------- None Achievements -------------- None Challenges ------------ None Game ------ Seed FusionArmorFemtoactuators Manual? 0 Play Time 00:16:48 Cumulative 5.5 hours Start 2026.01.22 @ 15:54:09 End 2026.01.22 @ 16:07:46 Sessions 1 Manual Loads 0 Difficulty Rogue Special Mode None Game No. 8 Rogue 8 Adventurer 0 Explorer 0 Win Type - Total 0 Types 0/0/0/0/0/0/0/0/0/0 Lore% 1 Gallery% 6 Achievement% 7 Wizard Run 0 Options --------- Layout 1 ASCII 0 Keyboard 1 Movement Numpad Keybinds 0 Fullscreen 1 Font 24/Smallcaps Map View 50x35 Zoom Use 0% Tactical HUD 0 Map Filters NONE Filters NONE Steam 1 RUN: 6fc29ec4-7a80-44b3-8de0-fab654fd63e2